fUSD/lending_fUSD_20250108
["ID","MTS","AMOUNT","RATE_DAILY","PERIOD"]
[348077705,1736295097350,7799.5,0.00023014,120]
[348077708,1736295976803,484.0,0.00023014,120]
[348077722,1736296232080,-1340.36,8.219e-05,2]
[348077723,1736296232102,-845.17507333,8.85e-05,2]
[348077724,1736296232117,-154.82492667,8.85e-05,2]
[348077725,1736296232126,-250.0,8.861e-05,2]
[348077726,1736296232135,-1170.45463106,8.913e-05,2]
[348077727,1736296232245,-307.81256994,8.913e-05,2]
[348077728,1736296232258,-339.624,8.913e-05,2]
[348077729,1736296232362,-619.53546235,8.913e-05,2]
[348077730,1736296232374,-281.28988996,8.913e-05,2]
[348077731,1736296232423,-3400.0,8.913e-05,2]
[348077732,1736296232435,-10533.61196256,8.913e-05,2]
[348077733,1736296232447,-278.06409137,8.913e-05,2]
[348077734,1736296232459,-919.19739276,8.913e-05,2]
[348077735,1736296232468,-1500.0,8.969e-05,2]
[348077736,1736296232478,-169.31,9.097e-05,2]
[348077737,1736296232487,-150.0,9.274e-05,2]
[348077738,1736296232496,-1270.57,9.275e-05,2]
[348077739,1736296232505,-576.69,9.275e-05,2]
[348077740,1736296232516,-858.22,9.275e-05,2]
[348077741,1736296232526,-500.0,9.275e-05,2]
[348077742,1736296232535,-511.56,9.275e-05,2]
[348077743,1736296232544,-500.0,9.275e-05,2]
[348077744,1736296232553,-460.43470088,9.275e-05,2]
[348077745,1736296232565,-39.56529912,9.275e-05,2]
[348077746,1736296232574,-214.89470088,9.275e-05,2]
[348077747,1736296232586,-821.49529912,9.275e-05,2]
[348077749,1736296232595,-330.05482903,9.275e-05,2]
[348077751,1736296232607,-213.11517097,9.275e-05,2]
[348077753,1736296232619,-43.58593133,9.275e-05,2]
[348077838,1736296237969,-192.55,8.82e-05,2]
[348077839,1736296237980,-456.41406867,9.275e-05,2]
[348077840,1736296237990,-86.79697316,9.275e-05,2]
[348077841,1736296238080,-413.20302684,9.275e-05,2]
[348077842,1736296238089,-500.0,9.275e-05,2]
[348077843,1736296238098,-502.71,9.275e-05,2]
[348077844,1736296238107,-500.0,9.275e-05,2]
[348077845,1736296238118,-500.0,9.275e-05,2]
[348077846,1736296238127,-500.0,9.275e-05,2]
[348077847,1736296238136,-500.0,9.275e-05,2]
[348077848,1736296238146,-602.69,9.275e-05,2]
[348077849,1736296238155,-524.68,9.275e-05,2]
[348077850,1736296238165,-1010.16,9.275e-05,2]
[348077851,1736296238174,-500.0,9.436e-05,2]
[348077852,1736296238183,-500.0,9.436e-05,2]
[348077853,1736296238192,-500.0,9.436e-05,2]
[348077854,1736296238201,-1083.99,9.436e-05,2]
[348077855,1736296238210,-500.0,9.436e-05,2]
[348077856,1736296238219,-500.0,9.436e-05,2]
[348077857,1736296238228,-612.95,9.436e-05,2]
[348077858,1736296238237,-500.0,9.436e-05,2]
[348077859,1736296238246,-843.93,9.436e-05,2]
[348077860,1736296238255,-1000.0,9.436e-05,2]
[348077861,1736296238264,-591.4,9.436e-05,2]
[348077862,1736296238274,-500.0,9.436e-05,2]
[348077863,1736296238283,-1202.53,9.436e-05,2]
[348077864,1736296238292,-1148.12,9.436e-05,2]
[348077865,1736296238301,-311.4713,9.448e-05,2]
[348077866,1736296238310,-265.4938,9.448e-05,2]
[348077867,1736296238319,-1893.7991,9.448e-05,2]
[348077868,1736296238328,-1080.4212,9.449e-05,2]
[348077869,1736296238338,-2429.63060398,9.547e-05,2]
[348077870,1736296238351,-500.0,9.548e-05,2]
[348077871,1736296238361,-590.52831956,9.548e-05,2]
[348077872,1736296238370,-500.0,9.548e-05,2]
[348077873,1736296238380,-500.0,9.548e-05,2]
[348077874,1736296238390,-500.0,9.548e-05,2]
[348077875,1736296238399,-500.0,9.548e-05,2]
[348077887,1736296238630,-500.0,9.548e-05,2]
[348077888,1736296238640,-500.0,9.548e-05,2]
[348077889,1736296238649,-500.0,9.548e-05,2]
[348077890,1736296238659,-500.0,9.548e-05,2]
[348077891,1736296238668,-500.0,9.548e-05,2]
[348077892,1736296238678,-500.0,9.548e-05,2]
[348077893,1736296238687,-500.0,9.548e-05,2]
[348077894,1736296238696,-500.0,9.548e-05,2]
[348077895,1736296238705,-500.0,9.548e-05,2]
[348077896,1736296238715,-500.0,9.548e-05,2]
[348077897,1736296238724,-500.0,9.548e-05,2]
[348077898,1736296238733,-500.0,9.548e-05,2]
[348077899,1736296238742,-500.0,9.548e-05,2]
[348077900,1736296238752,-500.0,9.548e-05,2]
[348077901,1736296238763,-500.0,9.548e-05,2]
[348077902,1736296238772,-500.0,9.548e-05,2]
[348077903,1736296238781,-500.0,9.548e-05,2]
[348077904,1736296238791,-500.0,9.548e-05,2]
[348077905,1736296238800,-500.0,9.548e-05,2]
[348077906,1736296238809,-500.0,9.548e-05,2]
[348077907,1736296238818,-500.0,9.548e-05,2]
[348077908,1736296238827,-500.0,9.548e-05,2]
[348077909,1736296238836,-500.0,9.548e-05,2]
[348077910,1736296238845,-500.0,9.548e-05,2]
[348077911,1736296238854,-500.0,9.548e-05,2]
[348077912,1736296238863,-500.0,9.548e-05,2]
[348077913,1736296238872,-500.0,9.548e-05,2]
[348077914,1736296238882,-500.0,9.548e-05,2]
[348077915,1736296238891,-500.0,9.548e-05,2]
[348077916,1736296238903,-500.0,9.548e-05,2]
[348077917,1736296238914,-500.0,9.548e-05,2]
[348077918,1736296238924,-500.0,9.548e-05,2]
[348077919,1736296238933,-500.0,9.548e-05,2]
[348077920,1736296238944,-500.0,9.548e-05,2]
[348077921,1736296238953,-500.0,9.548e-05,2]
[348077922,1736296238964,-500.0,9.548e-05,2]
[348077923,1736296238979,-655.53,9.548e-05,2]
[348077924,1736296238989,-500.0,9.548e-05,2]
[348077925,1736296238998,-500.0,9.548e-05,2]
[348077926,1736296239007,-500.0,9.548e-05,2]
[348077927,1736296239016,-500.0,9.548e-05,2]
[348077928,1736296239026,-500.0,9.548e-05,2]
[348077929,1736296239035,-500.0,9.548e-05,2]
[348077930,1736296239045,-500.0,9.548e-05,2]
[348077931,1736296239054,-500.0,9.548e-05,2]
[348077932,1736296239065,-800.37,9.548e-05,2]
[348077933,1736296239074,-551.77,9.548e-05,2]
[348077934,1736296239083,-500.0,9.548e-05,2]
[348077935,1736296239093,-500.0,9.548e-05,2]
[348077936,1736296239102,-500.0,9.548e-05,2]
[348077937,1736296239111,-548.29,9.548e-05,2]
[348077938,1736296239120,-1492.97,9.548e-05,2]
[348077939,1736296239130,-984.77,9.548e-05,2]
[348077940,1736296239143,-500.0,9.548e-05,2]
[348077941,1736296239153,-500.0,9.548e-05,2]
[348077942,1736296239163,-609.51,9.548e-05,2]
[348077943,1736296239172,-500.0,9.548e-05,2]
[348077944,1736296239181,-500.0,9.548e-05,2]
[348077945,1736296239191,-518.94,9.548e-05,2]
[348077946,1736296239200,-1133.87,9.548e-05,2]
[348077947,1736296239209,-500.0,9.548e-05,2]
[348077948,1736296239220,-876.46,9.548e-05,2]
[348077949,1736296239230,-500.0,9.548e-05,2]
[348077950,1736296239239,-500.0,9.549e-05,2]
[348077951,1736296239248,-500.0,9.549e-05,2]
[348077952,1736296239257,-500.0,9.549e-05,2]
[348077953,1736296239266,-500.0,9.549e-05,2]
[348077954,1736296239276,-500.0,9.549e-05,2]
[348077955,1736296239285,-500.0,9.549e-05,2]
[348077956,1736296239295,-500.0,9.549e-05,2]
[348077957,1736296239304,-500.0,9.549e-05,2]
[348077958,1736296239314,-500.0,9.549e-05,2]
[348077959,1736296239323,-500.0,9.549e-05,2]
[348077960,1736296239332,-500.0,9.549e-05,2]
[348077961,1736296239344,-500.0,9.549e-05,2]
[348077962,1736296239358,-500.0,9.549e-05,2]
[348077963,1736296239369,-500.0,9.549e-05,2]
[348077964,1736296239378,-500.0,9.549e-05,2]
[348077965,1736296239388,-500.0,9.549e-05,2]
[348077966,1736296239398,-504.42,9.549e-05,2]
[348077967,1736296239407,-500.0,9.549e-05,2]
[348077968,1736296239416,-500.0,9.549e-05,2]
[348077969,1736296239426,-500.0,9.549e-05,2]
[348077970,1736296239439,-500.0,9.549e-05,2]
[348077971,1736296239449,-1270.57,9.549e-05,2]
[348077972,1736296239458,-576.69,9.549e-05,2]
[348077973,1736296239468,-858.22,9.549e-05,2]
[348077974,1736296239477,-500.0,9.549e-05,2]
[348077975,1736296239486,-511.56,9.549e-05,2]
[348077976,1736296239496,-500.0,9.549e-05,2]
[348077977,1736296239505,-500.0,9.549e-05,2]
[348077978,1736296239515,-1036.39,9.549e-05,2]
[348077979,1736296239525,-543.17,9.549e-05,2]
[348077980,1736296239535,-500.0,9.549e-05,2]
[348077981,1736296239544,-500.0,9.549e-05,2]
[348077982,1736296239554,-500.0,9.549e-05,2]
[348077983,1736296239563,-502.71,9.549e-05,2]
[348077984,1736296239573,-500.0,9.549e-05,2]
[348077985,1736296239582,-500.0,9.549e-05,2]
[348077986,1736296239592,-500.0,9.549e-05,2]
[348077987,1736296239602,-500.0,9.549e-05,2]
[348077988,1736296239612,-602.69,9.549e-05,2]
[348077989,1736296239621,-524.68,9.549e-05,2]
[348077990,1736296239631,-1700.0,9.7e-05,3]
[348077991,1736296239640,-500.0,9.71e-05,2]
[348077992,1736296239650,-500.0,9.71e-05,2]
[348077993,1736296239659,-500.0,9.71e-05,2]
[348077994,1736296239669,-1083.99,9.71e-05,2]
[348077995,1736296239679,-500.0,9.71e-05,2]
[348077996,1736296239691,-612.95,9.71e-05,2]
[348077997,1736296239701,-500.0,9.71e-05,2]
[348077998,1736296239711,-843.93,9.71e-05,2]
[348077999,1736296239721,-1000.0,9.71e-05,2]
[348078000,1736296239732,-591.4,9.71e-05,2]
[348078001,1736296239741,-211.16094046,9.71e-05,2]
[348078002,1736296239755,-288.83905954,9.71e-05,2]
[348078003,1736296239764,-211.16094046,9.71e-05,2]
[348078004,1736296239775,-250.49,9.71e-05,2]
[348078005,1736296239792,-291.531,9.71e-05,2]
[348078006,1736296239819,-449.34805954,9.71e-05,2]
[348078007,1736296239831,-1148.12,9.71e-05,2]
[348078008,1736296239840,-417.6647,9.721e-05,2]
[348078009,1736296239849,-1000.0,9.721e-05,2]
[348078010,1736296239858,-3400.0,9.8e-05,3]
[348078011,1736296239870,-648.43,9.82e-05,2]
[348078013,1736296239879,-805.6,9.82e-05,2]
[348078014,1736296239890,-2738.89,9.82e-05,2]
[348078015,1736296239900,-500.0,9.82e-05,2]
[348078016,1736296239909,-500.0,9.82e-05,2]
[348078017,1736296239919,-586.53,9.82e-05,2]
[348078018,1736296239928,-504.64,9.82e-05,2]
[348078019,1736296239937,-1395.39,9.82e-05,2]
[348078020,1736296239947,-605.57,9.82e-05,2]
[348078021,1736296239957,-500.0,9.82e-05,2]
[348078023,1736296239967,-500.0,9.82e-05,2]
[348078024,1736296239978,-500.0,9.82e-05,2]
[348078025,1736296239988,-439.43531501,9.82e-05,2]
[348078026,1736296239997,-500.0,9.82e-05,2]
[348078027,1736296240006,-164.56214103,9.82e-05,2]
[348078028,1736296240016,-526.6568015,9.82e-05,2]
[348078029,1736296240026,-500.0,9.82e-05,2]
[348078030,1736296240036,-500.0,9.82e-05,2]
[348078031,1736296240045,-804.88,9.82e-05,2]
[348078032,1736296240055,-894.1,9.82e-05,2]
[348078033,1736296240065,-1235.9,9.82e-05,2]
[348078034,1736296240078,-695.91,9.82e-05,2]
[348078035,1736296240088,-687.17,9.82e-05,2]
[348078036,1736296240097,-500.0,9.82e-05,2]
[348078037,1736296240107,-500.0,9.82e-05,2]
[348078038,1736296240117,-1370.6,9.82e-05,2]
[348078039,1736296240127,-500.0,9.82e-05,2]
[348078040,1736296240137,-500.0,9.82e-05,2]
[348078041,1736296240146,-503.43,9.82e-05,2]
[348078042,1736296240155,-500.0,9.82e-05,2]
[348078043,1736296240165,-500.0,9.82e-05,2]
[348078044,1736296240174,-500.0,9.82e-05,2]
[348078045,1736296240184,-500.0,9.82e-05,2]
[348078046,1736296240194,-711.31,9.82e-05,2]
[348078047,1736296240204,-601.79,9.82e-05,2]
[348078048,1736296240213,-500.0,9.82e-05,2]
[348078049,1736296240222,-579.37,9.82e-05,2]
[348078050,1736296240232,-500.0,9.82e-05,2]
[348078051,1736296240241,-500.0,9.82e-05,2]
[348078052,1736296240250,-500.0,9.82e-05,2]
[348078053,1736296240259,-500.0,9.82e-05,2]
[348078054,1736296240269,-500.0,9.82e-05,2]
[348078055,1736296240278,-1755.25,9.82e-05,2]
[348078056,1736296240287,-500.0,9.82e-05,2]
[348078057,1736296240296,-500.0,9.82e-05,2]
[348078058,1736296240306,-500.0,9.821e-05,2]
[348078059,1736296240315,-500.0,9.821e-05,2]
[348078060,1736296240325,-500.0,9.821e-05,2]
[348078061,1736296240335,-500.0,9.821e-05,2]
[348078062,1736296240346,-500.0,9.821e-05,2]
[348078063,1736296240356,-500.0,9.821e-05,2]
[348078064,1736296240369,-500.0,9.821e-05,2]
[348078065,1736296240379,-500.0,9.821e-05,2]
[348078066,1736296240388,-500.0,9.821e-05,2]
[348078067,1736296240399,-500.0,9.821e-05,2]
[348078068,1736296240408,-500.0,9.821e-05,2]
[348078069,1736296240417,-500.0,9.821e-05,2]
[348078070,1736296240428,-500.0,9.821e-05,2]
[348078071,1736296240437,-500.0,9.821e-05,2]
[348078072,1736296240447,-500.0,9.821e-05,2]
[348078074,1736296240456,-631.85024488,9.821e-05,2]
[348078076,1736296240466,-500.0,9.821e-05,2]
[348078077,1736296240475,-500.0,9.821e-05,2]
[348078079,1736296240484,-500.0,9.821e-05,2]
[348078080,1736296240493,-500.0,9.821e-05,2]
[348078082,1736296240503,-500.0,9.821e-05,2]
[348078084,1736296240512,-500.0,9.821e-05,2]
[348078085,1736296240521,-500.0,9.821e-05,2]
[348078086,1736296240530,-500.0,9.821e-05,2]
[348078087,1736296240540,-500.0,9.821e-05,2]
[348078088,1736296240548,-500.0,9.821e-05,2]
[348078089,1736296240557,-500.0,9.821e-05,2]
[348078090,1736296240567,-500.0,9.821e-05,2]
[348078091,1736296240576,-500.0,9.821e-05,2]
[348078092,1736296240585,-500.0,9.821e-05,2]
[348078093,1736296240594,-500.0,9.821e-05,2]
[348078094,1736296240603,-500.0,9.821e-05,2]
[348078095,1736296240612,-500.0,9.821e-05,2]
[348078096,1736296240622,-500.0,9.821e-05,2]
[348078097,1736296240632,-500.0,9.821e-05,2]
[348078098,1736296240641,-500.0,9.821e-05,2]
[348078099,1736296240650,-500.0,9.821e-05,2]
[348078100,1736296240660,-500.0,9.821e-05,2]
[348078101,1736296240669,-500.0,9.821e-05,2]
[348078102,1736296240678,-500.0,9.821e-05,2]
[348078103,1736296240689,-500.0,9.821e-05,2]
[348078104,1736296240698,-500.0,9.821e-05,2]
[348078105,1736296240708,-500.0,9.821e-05,2]
[348078106,1736296240718,-500.0,9.821e-05,2]
[348078107,1736296240728,-208.06165584,9.821e-05,2]
[348078108,1736296240739,-500.0,9.821e-05,2]
[348078109,1736296240749,-500.0,9.821e-05,2]
[348078110,1736296240759,-500.0,9.821e-05,2]
[348078111,1736296240768,-500.0,9.821e-05,2]
[348078112,1736296240778,-500.0,9.821e-05,2]
[348078113,1736296240789,-500.0,9.821e-05,2]
[348078114,1736296240800,-500.0,9.821e-05,2]
[348078115,1736296240811,-500.0,9.821e-05,2]
[348078116,1736296240822,-500.0,9.821e-05,2]
[348078117,1736296240831,-500.0,9.821e-05,2]
[348078118,1736296240840,-500.0,9.821e-05,2]
[348078119,1736296240850,-500.0,9.821e-05,2]
[348078120,1736296240859,-500.0,9.821e-05,2]
[348078121,1736296240870,-500.0,9.821e-05,2]
[348078122,1736296240879,-500.0,9.821e-05,2]
[348078123,1736296240889,-500.0,9.821e-05,2]
[348078124,1736296240898,-640.72,9.821e-05,2]
[348078125,1736296240907,-500.0,9.821e-05,2]
[348078126,1736296240916,-500.0,9.821e-05,2]
[348078127,1736296240926,-500.0,9.821e-05,2]
[348078128,1736296240935,-500.0,9.821e-05,2]
[348078129,1736296240945,-500.0,9.821e-05,2]
[348078130,1736296240954,-500.0,9.821e-05,2]
[348078131,1736296240963,-500.0,9.821e-05,2]
[348078132,1736296240973,-500.0,9.821e-05,2]
[348078133,1736296240982,-500.0,9.821e-05,2]
[348078134,1736296240991,-500.0,9.821e-05,2]
[348078135,1736296241001,-500.0,9.821e-05,2]
[348078136,1736296241010,-500.0,9.821e-05,2]
[348078137,1736296241019,-2148.18,9.821e-05,2]
[348078138,1736296241029,-500.0,9.821e-05,2]
[348078139,1736296241038,-500.0,9.821e-05,2]
[348078140,1736296241048,-500.0,9.821e-05,2]
[348078141,1736296241057,-500.0,9.821e-05,2]
[348078142,1736296241067,-1235.54,9.821e-05,2]
[348078143,1736296241076,-500.0,9.821e-05,2]
[348078144,1736296241085,-500.0,9.821e-05,2]
[348078145,1736296241095,-500.0,9.821e-05,2]
[348078146,1736296241104,-500.0,9.821e-05,2]
[348078147,1736296241115,-500.0,9.821e-05,2]
[348078148,1736296241124,-1564.29,9.821e-05,2]
[348078149,1736296241134,-500.0,9.821e-05,2]
[348078150,1736296241143,-500.0,9.821e-05,2]
[348078151,1736296241153,-500.0,9.821e-05,2]
[348078152,1736296241163,-500.0,9.821e-05,2]
[348078153,1736296241173,-500.0,9.821e-05,2]
[348078154,1736296241182,-509.45,9.821e-05,2]
[348078155,1736296241191,-500.0,9.821e-05,2]
[348078156,1736296241201,-500.0,9.821e-05,2]
[348078157,1736296241210,-500.0,9.821e-05,2]
[348078158,1736296241220,-460.58802891,9.821e-05,2]
[348078159,1736296241230,-500.0,9.821e-05,2]
[348078160,1736296241239,-500.0,9.821e-05,2]
[348078161,1736296241248,-500.0,9.821e-05,2]
[348078162,1736296241258,-500.0,9.821e-05,2]
[348078163,1736296241267,-500.0,9.821e-05,2]
[348078164,1736296241276,-500.0,9.821e-05,2]
[348078165,1736296241285,-500.0,9.821e-05,2]
[348078166,1736296241295,-500.0,9.821e-05,2]
[348078167,1736296241304,-500.0,9.821e-05,2]
[348078168,1736296241314,-500.0,9.821e-05,2]
[348078169,1736296241323,-500.0,9.821e-05,2]
[348078170,1736296241332,-500.0,9.821e-05,2]
[348078171,1736296241342,-500.0,9.821e-05,2]
[348078172,1736296241354,-500.0,9.821e-05,2]
[348078173,1736296241366,-500.0,9.821e-05,2]
[348078174,1736296241375,-500.0,9.821e-05,2]
[348078175,1736296241385,-500.0,9.822e-05,2]
[348078176,1736296241396,-500.0,9.822e-05,2]
[348078177,1736296241405,-500.0,9.822e-05,2]
[348078178,1736296241414,-500.0,9.822e-05,2]
[348078179,1736296241424,-500.0,9.822e-05,2]
[348078180,1736296241434,-500.0,9.822e-05,2]
[348078181,1736296241444,-500.0,9.822e-05,2]
[348078182,1736296241454,-500.0,9.822e-05,2]
[348078183,1736296241463,-500.0,9.822e-05,2]
[348078184,1736296241472,-500.0,9.822e-05,2]
[348078185,1736296241481,-654.64,9.822e-05,2]
[348078186,1736296241491,-500.0,9.822e-05,2]
[348078187,1736296241499,-500.0,9.822e-05,2]
[348078188,1736296241508,-500.0,9.822e-05,2]
[348078189,1736296241518,-500.0,9.822e-05,2]
[348078190,1736296241527,-941.69,9.822e-05,2]
[348078191,1736296241536,-500.0,9.822e-05,2]
[348078192,1736296241545,-766.89,9.822e-05,2]
[348078193,1736296241554,-500.0,9.822e-05,2]
[348078194,1736296241563,-500.0,9.822e-05,2]
[348078195,1736296241573,-500.0,9.822e-05,2]
[348078196,1736296241582,-425.67277144,9.822e-05,2]
[348078197,1736296241592,-500.0,9.822e-05,2]
[348078198,1736296241601,-503.68,9.822e-05,2]
[348078199,1736296241611,-500.0,9.822e-05,2]
[348078200,1736296241622,-500.0,9.822e-05,2]
[348078201,1736296241631,-379.207389,9.822e-05,2]
[348078202,1736296241640,-156.126847,9.822e-05,2]
[348078203,1736296241650,-592.89,9.822e-05,2]
[348078204,1736296241659,-500.0,9.822e-05,2]
[348078205,1736296241668,-380.809983,9.822e-05,2]
[348078206,1736296241677,-1394.17,9.822e-05,2]
[348078207,1736296241686,-500.0,9.822e-05,2]
[348078208,1736296241696,-500.0,9.822e-05,2]
[348078209,1736296241705,-486.52818781,9.822e-05,2]
[348078210,1736296241715,-500.0,9.822e-05,2]
[348078211,1736296241724,-500.0,9.822e-05,2]
[348078212,1736296241733,-500.0,9.822e-05,2]
[348078213,1736296241743,-500.0,9.822e-05,2]
[348078214,1736296241752,-500.0,9.822e-05,2]
[348078215,1736296241762,-500.0,9.822e-05,2]
[348078216,1736296241771,-500.0,9.822e-05,2]
[348078217,1736296241782,-500.0,9.822e-05,2]
[348078218,1736296241792,-500.0,9.822e-05,2]
[348078219,1736296241801,-500.0,9.822e-05,2]
[348078220,1736296241811,-156.82157,9.822e-05,2]
[348078221,1736296241821,-655.53,9.822e-05,2]
[348078222,1736296241830,-500.0,9.822e-05,2]
[348078223,1736296241840,-500.0,9.822e-05,2]
[348078224,1736296241850,-500.0,9.822e-05,2]
[348078225,1736296241859,-500.0,9.822e-05,2]
[348078226,1736296241869,-500.0,9.822e-05,2]
[348078227,1736296241879,-153.420498,9.822e-05,2]
[348078228,1736296241888,-500.0,9.822e-05,2]
[348078229,1736296241897,-502.19555024,9.822e-05,2]
[348078230,1736296241906,-1187.86,9.822e-05,2]
[348078231,1736296241914,-500.0,9.822e-05,2]
[348078232,1736296241923,-500.0,9.822e-05,2]
[348078233,1736296241932,-800.37,9.822e-05,2]
[348078234,1736296241941,-500.0,9.822e-05,2]
[348078235,1736296241950,-500.0,9.822e-05,2]
[348078236,1736296241959,-500.0,9.822e-05,2]
[348078237,1736296241967,-548.29,9.822e-05,2]
[348078238,1736296241977,-1492.97,9.822e-05,2]
[348078239,1736296241987,-500.0,9.822e-05,2]
[348078240,1736296241996,-984.77,9.822e-05,2]
[348078241,1736296242005,-500.0,9.822e-05,2]
[348078242,1736296242015,-609.51,9.822e-05,2]
[348078243,1736296242024,-500.0,9.822e-05,2]
[348078244,1736296242034,-500.0,9.822e-05,2]
[348078245,1736296242043,-500.0,9.822e-05,2]
[348078246,1736296242053,-160.866159,9.822e-05,2]
[348078247,1736296242063,-518.94,9.822e-05,2]
[348078248,1736296242072,-500.0,9.822e-05,2]
[348078249,1736296242082,-1133.87,9.822e-05,2]
[348078250,1736296242092,-500.0,9.822e-05,2]
[348078251,1736296242101,-556.86,9.822e-05,2]
[348078252,1736296242111,-159.181719,9.822e-05,2]
[348078253,1736296242120,-876.46,9.822e-05,2]
[348078254,1736296242130,-566.08,9.822e-05,2]
[348078255,1736296242139,-500.0,9.822e-05,2]
[348078256,1736296242149,-1270.57,9.823e-05,2]
[348078257,1736296242159,-576.69,9.823e-05,2]
[348078258,1736296242168,-858.22,9.823e-05,2]
[348078259,1736296242177,-500.0,9.823e-05,2]
[348078260,1736296242187,-511.56,9.823e-05,2]
[348078261,1736296242196,-500.0,9.823e-05,2]
[348078262,1736296242206,-1036.39,9.823e-05,2]
[348078263,1736296242215,-543.17,9.823e-05,2]
[348078264,1736296242224,-500.0,9.823e-05,2]
[348078265,1736296242234,-500.0,9.823e-05,2]
[348078266,1736296242243,-500.0,9.823e-05,2]
[348078267,1736296242253,-502.71,9.823e-05,2]
[348078268,1736296242263,-500.0,9.823e-05,2]
[348078269,1736296242272,-500.0,9.823e-05,2]
[348078270,1736296242281,-500.0,9.823e-05,2]
[348078271,1736296242290,-500.0,9.823e-05,2]
[348078272,1736296242300,-602.69,9.823e-05,2]
[348078273,1736296242313,-524.68,9.823e-05,2]
[348078274,1736296242322,-5100.0,9.9e-05,3]
[348078275,1736296242332,-241013.94691096,9.9e-05,2]
[348078276,1736296242344,-1000.0,9.956e-05,2]
[348078277,1736296242356,-3068.35655147,9.978e-05,2]
[348078278,1736296242369,-500.0,9.984e-05,2]
[348078279,1736296242379,-500.0,9.984e-05,2]
[348078280,1736296242390,-500.0,9.984e-05,2]
[348078281,1736296242400,-1083.99,9.984e-05,2]
[348078282,1736296242409,-500.0,9.984e-05,2]
[348078283,1736296242419,-612.95,9.984e-05,2]
[348078284,1736296242430,-500.0,9.984e-05,2]
[348078285,1736296242443,-843.93,9.984e-05,2]
[348078286,1736296242453,-1000.0,9.984e-05,2]
[348078287,1736296242462,-591.4,9.984e-05,2]
[348078288,1736296242472,-500.0,9.984e-05,2]
[348078289,1736296242482,-1202.53,9.984e-05,2]
[348078290,1736296242491,-1148.12,9.984e-05,2]
[348078291,1736296242501,-403.06004756,9.999e-05,4]
[348078292,1736296242511,-253.76,0.0001,2]
[348078293,1736296242520,-1906.66429727,0.0001,2]
[348078294,1736296242530,-2304414.96125699,0.0001,2]
[348078295,1736296242540,-151.29802605,0.0001,2]
[348078296,1736296242550,-4239.10284717,0.0001,2]
[348078297,1736296242743,-6800.0,0.0001,3]
[348078298,1736296242753,-709444.89736106,0.0001,2]
[348078299,1736296242780,-500.0,0.0001,2]
[348078300,1736296242792,-6441.65827,0.0001,2]
[348078304,1736296242817,-1081.89339312,0.0001,2]
[348078306,1736296242828,-999.40944005,0.0001,2]
[348078316,1736296243240,-500.0,9.973e-05,2]
[348078317,1736296243251,-600.817,0.0001,2]
[348078318,1736296243263,-814.6,0.0001,2]
[348078319,1736296243299,-42487.2837457,0.0001,2]
[348078320,1736296243315,-5671.03004078,0.0001,2]
[348078321,1736296243333,-333.58518724,0.0001,2]
[348078322,1736296243345,-216737.52861187,0.0001,2]
[348078323,1736296243360,-861.64145334,0.0001,2]
[348078324,1736296243372,-2892.8275506,0.0001,2]
[348078326,1736296243385,-295672.58001723,0.0001,2]
[348078329,1736296243397,-1561.31933148,0.0001,2]
[348078331,1736296243409,-48950.45940723,0.0001,2]
[348078333,1736296243420,-115191.30887894,0.0001,2]
[348078335,1736296243432,-59236.4999796,0.0001,2]
[348078337,1736296243445,-93287.0,0.0001,2]
[348078338,1736296243634,-7509.99559041,0.0001,2]
[348078339,1736296243646,-4862.83716,0.0001,2]
[348078340,1736296243658,-744.5,0.0001,2]
[348078341,1736296243670,-38565.30798953,0.0001,2]
[348078342,1736296243686,-562.39668,0.0001,2]
[348078343,1736296243699,-419.81087525,0.0001,2]
[348078344,1736296243718,-430848.35523873,0.0001,2]